[Event "*** SCC Grand Prix: Titled Tuesday Blitz"]
[Site "Chess.com"]
[Date "2020.10.06"]
[Round "9"]
[White "StellarChessPro"]
[Black "Kavyev_Ruslan"]
[Result "1/2-1/2"]
[WhiteElo "2470"]
[BlackElo "2579"]
[TimeControl "180+1"]
[EndTime "11:47:46 PDT"]
[Termination "Game drawn - insufficient material"]

1. b3 {[%clk 0:03:00.5]} 1... Nf6 {[%clk 0:02:55.8]} 2. Bb2 {[%clk 0:03:00.6]}
2... g6 {[%clk 0:02:56.4]} 3. Nf3 {[%clk 0:03:00.8]} 3... Bg7 {[%clk 0:02:56.7]}
4. e3 {[%clk 0:03:01.4]} 4... O-O {[%clk 0:02:55.7]} 5. Be2 {[%clk 0:03:02.1]}
5... d5 {[%clk 0:02:56.1]} 6. O-O {[%clk 0:03:02.6]} 6... c5 {[%clk 0:02:56.9]}
7. h3 {[%clk 0:03:02.4]} 7... Nc6 {[%clk 0:02:57.5]} 8. d3 {[%clk 0:03:03.2]}
8... d4 {[%clk 0:02:56.2]} 9. exd4 {[%clk 0:03:03.4]} 9... Nh5 {[%clk 0:02:56]}
10. Re1 {[%clk 0:03:02.8]} 10... cxd4 {[%clk 0:02:45.5]} 11. Bf1 {[%clk
0:03:01.4]} 11... e5 {[%clk 0:02:40.6]} 12. Nbd2 {[%clk 0:03:01.3]} 12... Nf4
{[%clk 0:02:38.1]} 13. Kh2 {[%clk 0:03:00.8]} 13... Nd5 {[%clk 0:02:35.1]} 14.
a3 {[%clk 0:02:57.3]} 14... Be6 {[%clk 0:02:30.6]} 15. Kh1 {[%clk 0:02:53.3]}
15... Rc8 {[%clk 0:02:30.5]} 16. Nc4 {[%clk 0:02:53.4]} 16... Qc7 {[%clk
0:02:19.1]} 17. Ng5 {[%clk 0:02:52.7]} 17... Bd7 {[%clk 0:02:08.2]} 18. Qf3
{[%clk 0:02:52.1]} 18... Nc3 {[%clk 0:02:04.4]} 19. Ne4 {[%clk 0:02:45]} 19...
b5 {[%clk 0:01:54]} 20. Ncd6 {[%clk 0:02:34.7]} 20... Rb8 {[%clk 0:01:47]} 21.
Nf6+ {[%clk 0:02:20.2]} 21... Kh8 {[%clk 0:01:45.5]} 22. Nxd7 {[%clk 0:02:18.3]}
22... Qxd7 {[%clk 0:01:46.4]} 23. Ne4 {[%clk 0:02:18.3]} 23... Nd5 {[%clk
0:01:44]} 24. g3 {[%clk 0:02:15.5]} 24... f5 {[%clk 0:01:43.3]} 25. Nc5 {[%clk
0:02:14.5]} 25... Qd6 {[%clk 0:01:42.1]} 26. Bg2 {[%clk 0:02:14.4]} 26... Nce7
{[%clk 0:01:31.1]} 27. b4 {[%clk 0:02:13.1]} 27... a5 {[%clk 0:01:30.4]} 28. h4
{[%clk 0:01:42.4]} 28... axb4 {[%clk 0:01:29.2]} 29. axb4 {[%clk 0:01:43.3]}
29... Nxb4 {[%clk 0:01:28.9]} 30. Nb7 {[%clk 0:01:15.4]} 30... Qb6 {[%clk
0:01:26.3]} 31. Ba3 {[%clk 0:01:13.8]} 31... Nxc2 {[%clk 0:01:25.2]} 32. Bxe7
{[%clk 0:01:13.2]} 32... Nxe1 {[%clk 0:01:21.2]} 33. Rxe1 {[%clk 0:01:12.2]}
33... e4 {[%clk 0:00:39.4]} 34. dxe4 {[%clk 0:01:00.5]} 34... Qxb7 {[%clk
0:00:36.6]} 35. Bxf8 {[%clk 0:01:00.6]} 35... Rxf8 {[%clk 0:00:27.6]} 36. exf5
{[%clk 0:00:56.1]} 36... Qxf3 {[%clk 0:00:27.7]} 37. Bxf3 {[%clk 0:00:57]} 37...
gxf5 {[%clk 0:00:26.2]} 38. Rb1 {[%clk 0:00:53.2]} 38... Rb8 {[%clk 0:00:24.8]}
39. Bd5 {[%clk 0:00:51.3]} 39... b4 {[%clk 0:00:23.3]} 40. Kg2 {[%clk
0:00:49.4]} 40... d3 {[%clk 0:00:23.1]} 41. Kf3 {[%clk 0:00:49.7]} 41... d2
{[%clk 0:00:22.7]} 42. Ke2 {[%clk 0:00:49.7]} 42... Re8+ {[%clk 0:00:20.6]} 43.
Kxd2 {[%clk 0:00:43.7]} 43... Rd8 {[%clk 0:00:20.8]} 44. Rxb4 {[%clk 0:00:43.6]}
44... Rxd5+ {[%clk 0:00:21.7]} 45. Ke3 {[%clk 0:00:44.5]} 45... h6 {[%clk
0:00:20.5]} 46. Kf4 {[%clk 0:00:42.7]} 46... Kh7 {[%clk 0:00:19]} 47. f3 {[%clk
0:00:41.4]} 47... Kg6 {[%clk 0:00:18.8]} 48. Rb6+ {[%clk 0:00:41.3]} 48... Bf6
{[%clk 0:00:19.1]} 49. g4 {[%clk 0:00:41.3]} 49... Rd4+ {[%clk 0:00:18.8]} 50.
Kg3 {[%clk 0:00:42.1]} 50... f4+ {[%clk 0:00:17]} 51. Kh3 {[%clk 0:00:42.3]}
51... Rd3 {[%clk 0:00:17.2]} 52. h5+ {[%clk 0:00:39.8]} 52... Kf7 {[%clk
0:00:16.2]} 53. Kg2 {[%clk 0:00:40]} 53... Bg5 {[%clk 0:00:16.2]} 54. Rb7+
{[%clk 0:00:39.1]} 54... Ke6 {[%clk 0:00:16.5]} 55. Rb6+ {[%clk 0:00:39.6]}
55... Kd5 {[%clk 0:00:17]} 56. Rb5+ {[%clk 0:00:36.6]} 56... Kd4 {[%clk
0:00:17.5]} 57. Rb8 {[%clk 0:00:35.4]} 57... Ke3 {[%clk 0:00:17.8]} 58. Re8+
{[%clk 0:00:35.1]} 58... Kd2 {[%clk 0:00:18.4]} 59. Kf2 {[%clk 0:00:35.3]} 59...
Kd1 {[%clk 0:00:14.7]} 60. Re1+ {[%clk 0:00:34.8]} 60... Kc2 {[%clk 0:00:14.7]}
61. Re8 {[%clk 0:00:35.7]} 61... Rd2+ {[%clk 0:00:15.1]} 62. Kf1 {[%clk
0:00:36.3]} 62... Kd3 {[%clk 0:00:15.1]} 63. Re6 {[%clk 0:00:35.7]} 63... Rc2
{[%clk 0:00:12.9]} 64. Re8 {[%clk 0:00:35.2]} 64... Bh4 {[%clk 0:00:12.9]} 65.
Re6 {[%clk 0:00:34.3]} 65... Rf2+ {[%clk 0:00:13.1]} 66. Kg1 {[%clk 0:00:34.9]}
66... Rxf3 {[%clk 0:00:13.3]} 67. Rxh6 {[%clk 0:00:35.1]} 67... Rg3+ {[%clk
0:00:13.8]} 68. Kh2 {[%clk 0:00:35.6]} 68... Rxg4 {[%clk 0:00:14.3]} 69. Kh3
{[%clk 0:00:36.5]} 69... Rg1 {[%clk 0:00:12.5]} 70. Kxh4 {[%clk 0:00:36.7]}
70... f3 {[%clk 0:00:13.1]} 71. Rf6 {[%clk 0:00:36.6]} 71... Ke2 {[%clk
0:00:12.5]} 72. h6 {[%clk 0:00:36.6]} 72... f2 {[%clk 0:00:13.1]} 73. Kh5 {[%clk
0:00:34.9]} 73... f1=Q {[%clk 0:00:10]} 74. Rxf1 {[%clk 0:00:35.8]} 74... Kxf1
{[%clk 0:00:10.9]} 75. h7 {[%clk 0:00:36.6]} 75... Kf2 {[%clk 0:00:10.8]} 76.
Kh6 {[%clk 0:00:36.8]} 76... Kf3 {[%clk 0:00:09.6]} 77. h8=Q {[%clk 0:00:37.1]}
77... Rh1+ {[%clk 0:00:10.2]} 78. Kg7 {[%clk 0:00:38]} 78... Rxh8 {[%clk
0:00:11]} 79. Kxh8 {[%clk 0:00:38.4]} 1/2-1/2

[Event "*** SCC Grand Prix: Titled Tuesday Blitz"]
[Site "Chess.com"]
[Date "2020.10.06"]
[Round "9"]
[White "AlexeiShirov"]
[Black "PavelShkapenko"]
[Result "1/2-1/2"]
[WhiteElo "2840"]
[BlackElo "2740"]
[TimeControl "180+1"]
[EndTime "11:47:58 PDT"]
[Termination "Game drawn by stalemate"]

1. e4 {[%clk 0:03:00.9]} 1... e5 {[%clk 0:02:59.7]} 2. Nf3 {[%clk 0:03:00.6]}
2... Nc6 {[%clk 0:03:00.2]} 3. Bb5 {[%clk 0:03:00.2]} 3... Bc5 {[%clk
0:03:00.3]} 4. c3 {[%clk 0:02:57.7]} 4... Bb6 {[%clk 0:03:00.6]} 5. d4 {[%clk
0:02:53.8]} 5... Nf6 {[%clk 0:03:00.6]} 6. O-O {[%clk 0:02:51.1]} 6... O-O
{[%clk 0:03:00.1]} 7. Bg5 {[%clk 0:02:45.1]} 7... h6 {[%clk 0:02:59]} 8. Bh4
{[%clk 0:02:39.9]} 8... d6 {[%clk 0:02:53.2]} 9. Re1 {[%clk 0:02:22]} 9... Qe7
{[%clk 0:02:51.7]} 10. Nbd2 {[%clk 0:02:19.8]} 10... exd4 {[%clk 0:01:55.1]} 11.
Bxc6 {[%clk 0:02:18.8]} 11... bxc6 {[%clk 0:01:55.4]} 12. cxd4 {[%clk
0:02:16.7]} 12... Qe6 {[%clk 0:01:42.2]} 13. e5 {[%clk 0:02:09]} 13... Nd5
{[%clk 0:01:38.5]} 14. exd6 {[%clk 0:02:01]} 14... Qxd6 {[%clk 0:01:38.5]} 15.
Nc4 {[%clk 0:02:00.5]} 15... Qf4 {[%clk 0:01:09.5]} 16. Bg3 {[%clk 0:01:56.4]}
16... Qg4 {[%clk 0:01:07.3]} 17. Nce5 {[%clk 0:01:52.1]} 17... Qe6 {[%clk
0:01:02.1]} 18. Rc1 {[%clk 0:01:51.2]} 18... Bb7 {[%clk 0:00:47.2]} 19. Nxc6
{[%clk 0:01:49.8]} 19... Qf6 {[%clk 0:00:35]} 20. Nfe5 {[%clk 0:01:49.2]} 20...
Rfe8 {[%clk 0:00:30.1]} 21. Qb3 {[%clk 0:01:44.8]} 21... Nf4 {[%clk 0:00:20]}
22. Qf3 {[%clk 0:01:29.4]} 22... Ne6 {[%clk 0:00:16.8]} 23. Qxf6 {[%clk
0:01:18.3]} 23... gxf6 {[%clk 0:00:17]} 24. Ng4 {[%clk 0:01:16.6]} 24... Kg7
{[%clk 0:00:16.8]} 25. Red1 {[%clk 0:01:04.2]} 25... Bxc6 {[%clk 0:00:15.1]} 26.
Rxc6 {[%clk 0:01:02.1]} 26... Nxd4 {[%clk 0:00:15.1]} 27. Rc4 {[%clk 0:00:50.6]}
27... Ne2+ {[%clk 0:00:15]} 28. Kf1 {[%clk 0:00:49.3]} 28... Nxg3+ {[%clk
0:00:15.3]} 29. hxg3 {[%clk 0:00:48.1]} 29... Re6 {[%clk 0:00:16.2]} 30. Nh2
{[%clk 0:00:43.1]} 30... Rae8 {[%clk 0:00:16]} 31. Rc2 {[%clk 0:00:37.5]} 31...
Ba5 {[%clk 0:00:14.9]} 32. Nf3 {[%clk 0:00:37.3]} 32... Bb6 {[%clk 0:00:14.6]}
33. b3 {[%clk 0:00:33]} 33... Re4 {[%clk 0:00:12.2]} 34. Rdc1 {[%clk 0:00:28.7]}
34... R4e6 {[%clk 0:00:11.6]} 35. Rc4 {[%clk 0:00:28.2]} 35... Re2 {[%clk
0:00:11.3]} 36. R1c2 {[%clk 0:00:27.3]} 36... R2e6 {[%clk 0:00:11.2]} 37. g4
{[%clk 0:00:26.6]} 37... Rd6 {[%clk 0:00:11]} 38. g3 {[%clk 0:00:26.1]} 38...
Rd1+ {[%clk 0:00:10.3]} 39. Kg2 {[%clk 0:00:26.1]} 39... Rd6 {[%clk 0:00:10.9]}
40. Nh4 {[%clk 0:00:25.9]} 40... Kf8 {[%clk 0:00:10.8]} 41. Nf5 {[%clk
0:00:25.7]} 41... Rde6 {[%clk 0:00:11.5]} 42. Nxh6 {[%clk 0:00:25.6]} 42... Re2
{[%clk 0:00:11.8]} 43. Nf5 {[%clk 0:00:25.3]} 43... Bxf2 {[%clk 0:00:11.9]} 44.
Kf3 {[%clk 0:00:25.4]} 44... Rxc2 {[%clk 0:00:11.6]} 45. Rxc2 {[%clk 0:00:25.3]}
45... Bb6 {[%clk 0:00:12.2]} 46. Rh2 {[%clk 0:00:25.3]} 46... Kg8 {[%clk
0:00:12.7]} 47. Nh6+ {[%clk 0:00:25.4]} 47... Kg7 {[%clk 0:00:12.9]} 48. Nf5+
{[%clk 0:00:25.3]} 48... Kg8 {[%clk 0:00:13.3]} 49. Rh6 {[%clk 0:00:25.5]} 49...
Re6 {[%clk 0:00:13]} 50. Rh1 {[%clk 0:00:25.2]} 50... Re8 {[%clk 0:00:13]} 51.
Rd1 {[%clk 0:00:25.6]} 51... Kf8 {[%clk 0:00:11.8]} 52. Rd7 {[%clk 0:00:25.9]}
52... a5 {[%clk 0:00:11.7]} 53. a4 {[%clk 0:00:24.8]} 53... Re6 {[%clk
0:00:11.4]} 54. Rd8+ {[%clk 0:00:24.2]} 54... Re8 {[%clk 0:00:11.8]} 55. Rxe8+
{[%clk 0:00:23.9]} 55... Kxe8 {[%clk 0:00:12.2]} 56. Ke4 {[%clk 0:00:24.4]}
56... Kd7 {[%clk 0:00:12.6]} 57. Kd5 {[%clk 0:00:24.9]} 57... c6+ {[%clk
0:00:13.1]} 58. Kc4 {[%clk 0:00:25.4]} 58... Ke6 {[%clk 0:00:13.5]} 59. b4
{[%clk 0:00:24.6]} 59... axb4 {[%clk 0:00:13.3]} 60. Kxb4 {[%clk 0:00:24.7]}
60... Ke5 {[%clk 0:00:13.8]} 61. Kc4 {[%clk 0:00:24.2]} 61... Ke4 {[%clk
0:00:13.9]} 62. Nd6+ {[%clk 0:00:23.6]} 62... Kf3 {[%clk 0:00:14.2]} 63. Nxf7
{[%clk 0:00:22]} 63... Kxg4 {[%clk 0:00:14.2]} 64. Nd6 {[%clk 0:00:20]} 64...
Kxg3 {[%clk 0:00:14.1]} 65. Ne4+ {[%clk 0:00:20]} 65... Kf4 {[%clk 0:00:13.7]}
66. Nxf6 {[%clk 0:00:20]} 66... Kf5 {[%clk 0:00:14.3]} 67. Nd7 {[%clk
0:00:20.3]} 67... Bd8 {[%clk 0:00:13.5]} 68. Kc5 {[%clk 0:00:20.3]} 68... Ke6
{[%clk 0:00:13.7]} 69. Kxc6 {[%clk 0:00:20.7]} 69... Ba5 {[%clk 0:00:13.7]} 70.
Nc5+ {[%clk 0:00:21]} 70... Ke7 {[%clk 0:00:13.9]} 71. Nb7 {[%clk 0:00:20.6]}
71... Bc3 {[%clk 0:00:14.1]} 72. Kb5 {[%clk 0:00:20.7]} 72... Kd7 {[%clk
0:00:13.9]} 73. Nc5+ {[%clk 0:00:21]} 73... Kc7 {[%clk 0:00:13.7]} 74. Na6+
{[%clk 0:00:20.7]} 74... Kb7 {[%clk 0:00:13]} 75. Nb4 {[%clk 0:00:20.5]} 75...
Bxb4 {[%clk 0:00:12.7]} 76. Kxb4 {[%clk 0:00:20.7]} 76... Kb6 {[%clk 0:00:13.1]}
77. a5+ {[%clk 0:00:20.7]} 77... Ka6 {[%clk 0:00:13.6]} 78. Ka4 {[%clk 0:00:21]}
78... Ka7 {[%clk 0:00:14]} 79. Kb5 {[%clk 0:00:21.1]} 79... Kb7 {[%clk
0:00:14.6]} 80. a6+ {[%clk 0:00:21.3]} 80... Ka7 {[%clk 0:00:15.3]} 81. Ka5
{[%clk 0:00:21.3]} 81... Ka8 {[%clk 0:00:15.9]} 82. Kb6 {[%clk 0:00:21]} 82...
Kb8 {[%clk 0:00:16.2]} 83. a7+ {[%clk 0:00:21.1]} 83... Ka8 {[%clk 0:00:16.8]}
84. Ka6 {[%clk 0:00:21.5]} 1/2-1/2

[Event "*** SCC Grand Prix: Titled Tuesday Blitz"]
[Site "Chess.com"]
[Date "2020.10.06"]
[Round "9"]
[White "reutik"]
[Black "Loy_Konstantin"]
[Result "0-1"]
[WhiteElo "2194"]
[BlackElo "2360"]
[TimeControl "180+1"]
[EndTime "11:47:59 PDT"]
[Termination "Loy_Konstantin won on time"]

1. d4 {[%clk 0:03:00.9]} 1... Nf6 {[%clk 0:02:59.4]} 2. c4 {[%clk 0:03:00.8]}
2... c5 {[%clk 0:02:59.2]} 3. d5 {[%clk 0:03:00.7]} 3... b5 {[%clk 0:02:59.1]}
4. cxb5 {[%clk 0:03:00.5]} 4... a6 {[%clk 0:02:59.5]} 5. bxa6 {[%clk 0:03:00.5]}
5... Bxa6 {[%clk 0:03:00.4]} 6. Nc3 {[%clk 0:03:00.5]} 6... g6 {[%clk
0:02:59.4]} 7. g3 {[%clk 0:03:00]} 7... d6 {[%clk 0:02:59.1]} 8. Bg2 {[%clk
0:03:00.3]} 8... Bg7 {[%clk 0:02:59.5]} 9. Nf3 {[%clk 0:03:00.5]} 9... Nbd7
{[%clk 0:02:59.3]} 10. O-O {[%clk 0:03:00.7]} 10... Qa5 {[%clk 0:02:56.5]} 11.
Qc2 {[%clk 0:02:58.5]} 11... Nb6 {[%clk 0:02:54.5]} 12. Rd1 {[%clk 0:02:52.8]}
12... Nfd7 {[%clk 0:02:50.8]} 13. Bd2 {[%clk 0:02:43.5]} 13... Nc4 {[%clk
0:02:49]} 14. Be1 {[%clk 0:02:43.3]} 14... O-O {[%clk 0:02:46.3]} 15. a3 {[%clk
0:02:19.9]} 15... Rfb8 {[%clk 0:02:38.5]} 16. Rab1 {[%clk 0:02:19.4]} 16... Qb6
{[%clk 0:02:26.3]} 17. e4 {[%clk 0:01:50.6]} 17... Qb3 {[%clk 0:02:22.6]} 18.
Qxb3 {[%clk 0:01:12.6]} 18... Rxb3 {[%clk 0:02:23.5]} 19. Nd2 {[%clk 0:01:08.3]}
19... Rxb2 {[%clk 0:02:09]} 20. Nxc4 {[%clk 0:01:04.3]} 20... Rxb1 {[%clk
0:02:07.8]} 21. Rxb1 {[%clk 0:01:01.6]} 21... Bxc4 {[%clk 0:02:08.2]} 22. a4
{[%clk 0:01:00]} 22... Bxc3 {[%clk 0:01:27]} 23. Bxc3 {[%clk 0:00:59.8]} 23...
Rxa4 {[%clk 0:01:27.4]} 24. Rb7 {[%clk 0:00:53.2]} 24... Ra3 {[%clk 0:01:25.6]}
25. Bb2 {[%clk 0:00:50.7]} 25... Rb3 {[%clk 0:01:23.9]} 26. Rxb3 {[%clk
0:00:48.1]} 26... Bxb3 {[%clk 0:01:23.8]} 27. f3 {[%clk 0:00:47.8]} 27... f6
{[%clk 0:01:19.3]} 28. Kf2 {[%clk 0:00:44.6]} 28... Ne5 {[%clk 0:01:17.6]} 29.
Bc3 {[%clk 0:00:41.6]} 29... Bc4 {[%clk 0:01:14.4]} 30. Bh3 {[%clk 0:00:40.1]}
30... Kf8 {[%clk 0:01:11]} 31. Ke3 {[%clk 0:00:38.4]} 31... Bb5 {[%clk
0:01:08.7]} 32. f4 {[%clk 0:00:33.9]} 32... Nc4+ {[%clk 0:01:07]} 33. Kf3 {[%clk
0:00:28.6]} 33... Na3 {[%clk 0:00:55.6]} 34. Ke3 {[%clk 0:00:20.5]} 34... Nb1
{[%clk 0:00:53.8]} 35. Bb2 {[%clk 0:00:19.7]} 35... Ba4 {[%clk 0:00:45.3]} 36.
Bg4 {[%clk 0:00:16.9]} 36... c4 {[%clk 0:00:31]} 37. Kd4 {[%clk 0:00:16]} 37...
Bb3 {[%clk 0:00:31.4]} 38. Be2 {[%clk 0:00:14]} 38... Nd2 {[%clk 0:00:30.1]} 39.
Bc3 {[%clk 0:00:12.5]} 39... Nb1 {[%clk 0:00:23.9]} 40. Bb4 {[%clk 0:00:10.6]}
40... c3 {[%clk 0:00:21.2]} 41. Bxc3 {[%clk 0:00:09.2]} 41... Nxc3 {[%clk
0:00:22.1]} 42. Kxc3 {[%clk 0:00:09.6]} 42... Ba4 {[%clk 0:00:20.4]} 43. Kd4
{[%clk 0:00:09.3]} 43... Kf7 {[%clk 0:00:17.6]} 44. e5 {[%clk 0:00:09.4]} 44...
fxe5+ {[%clk 0:00:16.8]} 45. fxe5 {[%clk 0:00:09.7]} 45... g5 {[%clk 0:00:16.8]}
46. h4 {[%clk 0:00:09]} 46... h6 {[%clk 0:00:16.2]} 47. Bh5+ {[%clk 0:00:08.9]}
47... Kg7 {[%clk 0:00:15.4]} 48. Ke4 {[%clk 0:00:09.1]} 48... Bc2+ {[%clk
0:00:14.1]} 49. Kd4 {[%clk 0:00:09.3]} 49... Bb1 {[%clk 0:00:13.7]} 50. Be8
{[%clk 0:00:08.4]} 50... Bg6 {[%clk 0:00:12.3]} 51. Bd7 {[%clk 0:00:08.6]} 51...
gxh4 {[%clk 0:00:11.2]} 52. gxh4 {[%clk 0:00:08.5]} 52... Bf7 {[%clk 0:00:10.7]}
53. Bf5 {[%clk 0:00:08.5]} 53... Bg6 {[%clk 0:00:10.5]} 54. Be6 {[%clk
0:00:08.4]} 54... Bb1 {[%clk 0:00:09.6]} 55. Bg4 {[%clk 0:00:07.1]} 55... Kg6
{[%clk 0:00:08.9]} 56. exd6 {[%clk 0:00:06.2]} 56... exd6 {[%clk 0:00:08.8]} 57.
Be2 {[%clk 0:00:05.4]} 57... Kf6 {[%clk 0:00:08.5]} 58. Bg4 {[%clk 0:00:05.3]}
58... Bf5 {[%clk 0:00:08.5]} 59. Bf3 {[%clk 0:00:05.5]} 59... Bg6 {[%clk
0:00:07.7]} 60. Bg4 {[%clk 0:00:05.7]} 60... Bf7 {[%clk 0:00:07.8]} 61. Bh3
{[%clk 0:00:05.8]} 61... Kg6 {[%clk 0:00:07.6]} 62. Bg4 {[%clk 0:00:05.7]} 62...
Be8 {[%clk 0:00:08.1]} 63. Ke4 {[%clk 0:00:04.8]} 63... Ba4 {[%clk 0:00:07.4]}
64. Kf4 {[%clk 0:00:04.1]} 64... Bb3 {[%clk 0:00:06.7]} 65. Be6 {[%clk
0:00:03.9]} 65... Kf6 {[%clk 0:00:06.5]} 66. Bg8 {[%clk 0:00:02.4]} 66... Bc2
{[%clk 0:00:05.4]} 67. Be6 {[%clk 0:00:02]} 67... Bg6 {[%clk 0:00:04.9]} 68. Bg4
{[%clk 0:00:01.3]} 68... Bf7 {[%clk 0:00:04.5]} 69. Bf3 {[%clk 0:00:01.2]} 69...
Be8 {[%clk 0:00:04.4]} 0-1

[Event "*** SCC Grand Prix: Titled Tuesday Blitz"]
[Site "Chess.com"]
[Date "2020.10.06"]
[Round "9"]
[White "Semetey"]
[Black "esapunov"]
[Result "1-0"]
[WhiteElo "2511"]
[BlackElo "2638"]
[TimeControl "180+1"]
[EndTime "11:48:11 PDT"]
[Termination "Semetey won on time"]

1. d4 {[%clk 0:03:00.9]} 1... Nf6 {[%clk 0:02:59.6]} 2. c4 {[%clk 0:03:01.8]}
2... g6 {[%clk 0:03:00]} 3. Nc3 {[%clk 0:03:02.7]} 3... Bg7 {[%clk 0:03:00.2]}
4. e4 {[%clk 0:03:02.7]} 4... O-O {[%clk 0:03:00.7]} 5. Bd3 {[%clk 0:03:01.9]}
5... d6 {[%clk 0:02:59.8]} 6. Nge2 {[%clk 0:03:01.9]} 6... Nc6 {[%clk
0:02:59.4]} 7. f3 {[%clk 0:02:59.2]} 7... e5 {[%clk 0:02:58.8]} 8. d5 {[%clk
0:02:59.1]} 8... Nd4 {[%clk 0:02:59.3]} 9. Nxd4 {[%clk 0:02:59.3]} 9... exd4
{[%clk 0:02:59.3]} 10. Ne2 {[%clk 0:03:00.2]} 10... Nd7 {[%clk 0:02:59.8]} 11.
Bc2 {[%clk 0:02:48.1]} 11... Qf6 {[%clk 0:02:58.7]} 12. O-O {[%clk 0:02:44.6]}
12... c5 {[%clk 0:02:58.9]} 13. dxc6 {[%clk 0:02:35.5]} 13... bxc6 {[%clk
0:02:58.5]} 14. Rb1 {[%clk 0:02:29.5]} 14... a5 {[%clk 0:02:49.8]} 15. b3 {[%clk
0:02:28.9]} 15... c5 {[%clk 0:02:49.1]} 16. Nf4 {[%clk 0:02:27.9]} 16... Bb7
{[%clk 0:02:43.9]} 17. Bd2 {[%clk 0:02:27.5]} 17... Rfe8 {[%clk 0:02:25.3]} 18.
Bd3 {[%clk 0:02:26.6]} 18... Ne5 {[%clk 0:02:23.3]} 19. Qc2 {[%clk 0:02:26.5]}
19... Qd8 {[%clk 0:02:22.6]} 20. Nd5 {[%clk 0:02:17.3]} 20... Nc6 {[%clk
0:02:12.3]} 21. a3 {[%clk 0:02:13.5]} 21... Ne5 {[%clk 0:02:12]} 22. h3 {[%clk
0:02:12.4]} 22... Rb8 {[%clk 0:01:49.2]} 23. Be2 {[%clk 0:02:09.5]} 23... Bxd5
{[%clk 0:01:43.5]} 24. cxd5 {[%clk 0:02:10.4]} 24... Qb6 {[%clk 0:01:41.6]} 25.
Kh1 {[%clk 0:02:04.2]} 25... Rec8 {[%clk 0:01:37.2]} 26. a4 {[%clk 0:01:51.6]}
26... Re8 {[%clk 0:01:22.1]} 27. Bb5 {[%clk 0:01:50.9]} 27... Re7 {[%clk
0:01:20.7]} 28. Bg5 {[%clk 0:01:47.2]} 28... Ra7 {[%clk 0:01:16.3]} 29. f4
{[%clk 0:01:45.7]} 29... Nd7 {[%clk 0:01:15.7]} 30. Rbe1 {[%clk 0:01:38]} 30...
Nf6 {[%clk 0:01:12.7]} 31. Qc4 {[%clk 0:01:27.6]} 31... Nh5 {[%clk 0:01:08.1]}
32. Rf3 {[%clk 0:01:25.8]} 32... h6 {[%clk 0:01:07.3]} 33. Bh4 {[%clk
0:01:25.5]} 33... Nxf4 {[%clk 0:01:01]} 34. Rxf4 {[%clk 0:01:24.7]} 34... g5
{[%clk 0:01:01.5]} 35. Rg4 {[%clk 0:01:11]} 35... gxh4 {[%clk 0:00:59.6]} 36.
Qc1 {[%clk 0:00:49.4]} 36... Kh8 {[%clk 0:00:52.4]} 37. Rxh4 {[%clk 0:00:43.7]}
37... Qd8 {[%clk 0:00:47]} 38. Rxh6+ {[%clk 0:00:42.6]} 38... Bxh6 {[%clk
0:00:41.6]} 39. Qxh6+ {[%clk 0:00:43.5]} 39... Kg8 {[%clk 0:00:42.1]} 40. Rf1
{[%clk 0:00:43]} 40... Qf8 {[%clk 0:00:41]} 41. Qh5 {[%clk 0:00:42.8]} 41... f6
{[%clk 0:00:38.3]} 42. e5 {[%clk 0:00:32.4]} 42... dxe5 {[%clk 0:00:30]} 43. Bc4
{[%clk 0:00:29.1]} 43... Rb4 {[%clk 0:00:25.6]} 44. Bd3 {[%clk 0:00:12.1]} 44...
Rxb3 {[%clk 0:00:18.6]} 45. Bf5 {[%clk 0:00:12]} 45... Rb6 {[%clk 0:00:18.8]}
46. Rf3 {[%clk 0:00:11.3]} 46... Rg7 {[%clk 0:00:18.1]} 47. d6 {[%clk
0:00:07.4]} 47... Rxd6 {[%clk 0:00:17.5]} 48. Bd3 {[%clk 0:00:07.6]} 48... Qf7
{[%clk 0:00:15.9]} 49. Qf5 {[%clk 0:00:06.6]} 49... Rd8 {[%clk 0:00:13.8]} 50.
Bb5 {[%clk 0:00:05.1]} 50... Rg5 {[%clk 0:00:12.9]} 51. Qe4 {[%clk 0:00:04.8]}
51... Kg7 {[%clk 0:00:11.9]} 52. Qd3 {[%clk 0:00:05.1]} 52... Qe7 {[%clk
0:00:11.6]} 53. Bc6 {[%clk 0:00:03.1]} 53... Rb8 {[%clk 0:00:09.2]} 54. Be4
{[%clk 0:00:04]} 54... Rb4 {[%clk 0:00:09]} 55. Kh2 {[%clk 0:00:04.9]} 55... Qc7
{[%clk 0:00:08.6]} 56. h4 {[%clk 0:00:04.2]} 56... c4 {[%clk 0:00:08.7]} 57. Qe2
{[%clk 0:00:03.4]} 57... Rg4 {[%clk 0:00:08.9]} 58. Rh3 {[%clk 0:00:03.8]} 58...
Rf4 {[%clk 0:00:08.5]} 59. Rg3+ {[%clk 0:00:03.7]} 59... Kf8 {[%clk 0:00:08.1]}
60. Qh5 {[%clk 0:00:04.3]} 60... Ke7 {[%clk 0:00:08]} 61. Rg7+ {[%clk
0:00:03.1]} 61... Kd6 {[%clk 0:00:08.2]} 62. Rxc7 {[%clk 0:00:04]} 62... Kxc7
{[%clk 0:00:08.6]} 63. Bf3 {[%clk 0:00:03.5]} 63... c3 {[%clk 0:00:07.1]} 64.
Qf7+ {[%clk 0:00:04]} 64... Kd6 {[%clk 0:00:07]} 65. Qd5+ {[%clk 0:00:04.2]}
65... Ke7 {[%clk 0:00:06.8]} 66. Qxa5 {[%clk 0:00:04.7]} 66... Rb2 {[%clk
0:00:06.3]} 67. Qc5+ {[%clk 0:00:04.7]} 67... Ke6 {[%clk 0:00:06]} 68. Qd5+
{[%clk 0:00:04.3]} 68... Ke7 {[%clk 0:00:06.1]} 69. Bh5 {[%clk 0:00:04.7]} 69...
c2 {[%clk 0:00:04.7]} 70. Qc5+ {[%clk 0:00:05.2]} 70... Ke6 {[%clk 0:00:03.6]}
71. Bg6 {[%clk 0:00:04.6]} 71... e4 {[%clk 0:00:02.4]} 72. Qc6+ {[%clk
0:00:04.6]} 72... Ke7 {[%clk 0:00:01.5]} 73. Qc7+ {[%clk 0:00:04.7]} 73... Ke6
{[%clk 0:00:01.9]} 74. Qxf4 {[%clk 0:00:04.7]} 1-0